[Event "*** Titled Tuesday Blitz"]
[Site "Chess.com"]
[Date "2020.04.14"]
[Round "4"]
[White "Mourinho_Jose"]
[Black "JakeCarlosBanawa"]
[Result "1-0"]
[WhiteElo "2624"]
[BlackElo "2351"]
[TimeControl "180+1"]
[EndTime "10:40:36 PDT"]
[Termination "Mourinho_Jose won on time"]

1. Nf3 {[%clk 0:03:00.9]} 1... Nf6 {[%clk 0:02:58.9]} 2. c4 {[%clk 0:03:00.8]}
2... e6 {[%clk 0:02:57.7]} 3. g3 {[%clk 0:03:00.8]} 3... b5 {[%clk 0:02:57.7]}
4. cxb5 {[%clk 0:02:59.8]} 4... a6 {[%clk 0:02:53.1]} 5. bxa6 {[%clk 0:02:57.7]}
5... Bxa6 {[%clk 0:02:54]} 6. Bg2 {[%clk 0:02:58]} 6... d5 {[%clk 0:02:52.8]} 7.
O-O {[%clk 0:02:57.9]} 7... c5 {[%clk 0:02:52.8]} 8. b3 {[%clk 0:02:57.6]} 8...
Nc6 {[%clk 0:02:47.9]} 9. d3 {[%clk 0:02:57.3]} 9... Bd6 {[%clk 0:02:46.9]} 10.
Bb2 {[%clk 0:02:57.8]} 10... O-O {[%clk 0:02:45.8]} 11. Nbd2 {[%clk 0:02:58.4]}
11... e5 {[%clk 0:02:40]} 12. a3 {[%clk 0:02:49.8]} 12... Re8 {[%clk 0:02:32]}
13. Nh4 {[%clk 0:02:45.5]} 13... Bc8 {[%clk 0:02:09.1]} 14. Qc2 {[%clk
0:02:31.7]} 14... Nd4 {[%clk 0:02:05.2]} 15. Bxd4 {[%clk 0:02:30.8]} 15... exd4
{[%clk 0:02:06.1]} 16. Rfe1 {[%clk 0:02:26.3]} 16... Bg4 {[%clk 0:02:02.3]} 17.
Nhf3 {[%clk 0:02:25.9]} 17... Qd7 {[%clk 0:01:57.8]} 18. Qb2 {[%clk 0:02:12.9]}
18... Rab8 {[%clk 0:01:39]} 19. Rac1 {[%clk 0:02:11.6]} 19... Re7 {[%clk
0:01:34.8]} 20. Kf1 {[%clk 0:02:00.1]} 20... Bh3 {[%clk 0:01:30.7]} 21. Ng5
{[%clk 0:01:47]} 21... Bxg2+ {[%clk 0:01:16.6]} 22. Kxg2 {[%clk 0:01:47.9]}
22... h6 {[%clk 0:01:17.2]} 23. Ngf3 {[%clk 0:01:45.8]} 23... g5 {[%clk
0:01:17.7]} 24. Qa1 {[%clk 0:01:34.3]} 24... Ng4 {[%clk 0:01:06.2]} 25. b4
{[%clk 0:01:28.6]} 25... cxb4 {[%clk 0:01:01.1]} 26. axb4 {[%clk 0:01:28.9]}
26... Rxb4 {[%clk 0:00:45.4]} 27. Nxd4 {[%clk 0:01:27.7]} 27... Be5 {[%clk
0:00:35]} 28. N2f3 {[%clk 0:01:27.6]} 28... Bg7 {[%clk 0:00:33.9]} 29. Qc3
{[%clk 0:01:08.1]} 29... Rb8 {[%clk 0:00:30.9]} 30. Qc6 {[%clk 0:01:04.7]} 30...
Rb2 {[%clk 0:00:23.4]} 31. Qxd7 {[%clk 0:00:58]} 31... Rxd7 {[%clk 0:00:24.3]}
32. h3 {[%clk 0:00:54.7]} 32... Ne5 {[%clk 0:00:21.8]} 33. Rc8+ {[%clk
0:00:54.1]} 33... Kh7 {[%clk 0:00:21]} 34. Nf5 {[%clk 0:00:44.6]} 34... Bf6
{[%clk 0:00:18.7]} 35. Nxe5 {[%clk 0:00:32.4]} 35... Bxe5 {[%clk 0:00:18.4]} 36.
Rc6 {[%clk 0:00:33]} 36... f6 {[%clk 0:00:15.5]} 37. d4 {[%clk 0:00:32.4]} 37...
Kg6 {[%clk 0:00:12.2]} 38. dxe5 {[%clk 0:00:31.3]} 38... Kxf5 {[%clk 0:00:12.5]}
39. Rxf6+ {[%clk 0:00:30.6]} 39... Kxe5 {[%clk 0:00:12.2]} 40. Rxh6 {[%clk
0:00:30.6]} 40... d4 {[%clk 0:00:11.8]} 41. Rh5 {[%clk 0:00:27.1]} 41... Kf6
{[%clk 0:00:10.6]} 42. Rh6+ {[%clk 0:00:27.2]} 42... Kf5 {[%clk 0:00:10.3]} 43.
Ra6 {[%clk 0:00:25.2]} 43... Re7 {[%clk 0:00:10]} 44. Ra5+ {[%clk 0:00:24.2]}
44... Kf6 {[%clk 0:00:09.9]} 45. Rd5 {[%clk 0:00:17.5]} 45... Rd2 {[%clk
0:00:10.1]} 46. g4 {[%clk 0:00:12.4]} 46... d3 {[%clk 0:00:09.3]} 47. e3 {[%clk
0:00:12]} 47... Rc7 {[%clk 0:00:07.6]} 48. Rb1 {[%clk 0:00:09.7]} 48... Rcc2
{[%clk 0:00:07.5]} 49. Rf5+ {[%clk 0:00:10.1]} 49... Ke6 {[%clk 0:00:07.3]} 50.
Rb6+ {[%clk 0:00:10.7]} 50... Kd7 {[%clk 0:00:05.9]} 51. Rf7+ {[%clk 0:00:10.7]}
51... Kc8 {[%clk 0:00:05.5]} 52. Rg6 {[%clk 0:00:10.2]} 52... Kb8 {[%clk
0:00:05.2]} 53. Rg8+ {[%clk 0:00:09.7]} 53... Rc8 {[%clk 0:00:05.1]} 54. Rxc8+
{[%clk 0:00:10.1]} 54... Kxc8 {[%clk 0:00:06]} 55. Rf5 {[%clk 0:00:10.1]} 55...
Re2 {[%clk 0:00:04.7]} 56. Rd5 {[%clk 0:00:09.9]} 56... Kc7 {[%clk 0:00:04.4]}
57. Rxd3 {[%clk 0:00:09.2]} 57... Kc6 {[%clk 0:00:02.2]} 58. Rd4 {[%clk
0:00:09.7]} 1-0

[Event "*** Titled Tuesday Blitz"]
[Site "Chess.com"]
[Date "2020.04.14"]
[Round "4"]
[White "Alliswell998"]
[Black "Dynamikus"]
[Result "0-1"]
[WhiteElo "2560"]
[BlackElo "2750"]
[TimeControl "180+1"]
[EndTime "10:40:38 PDT"]
[Termination "Dynamikus won on time"]

1. d4 {[%clk 0:03:00.9]} 1... Nf6 {[%clk 0:02:59.3]} 2. Bg5 {[%clk 0:03:01.4]}
2... d5 {[%clk 0:02:58.7]} 3. Bxf6 {[%clk 0:03:01.2]} 3... exf6 {[%clk
0:02:59.6]} 4. e3 {[%clk 0:03:01.7]} 4... Bd6 {[%clk 0:02:59.3]} 5. c4 {[%clk
0:03:02.2]} 5... dxc4 {[%clk 0:03:00.2]} 6. Bxc4 {[%clk 0:03:02.3]} 6... O-O
{[%clk 0:03:00.8]} 7. Nc3 {[%clk 0:03:02.5]} 7... f5 {[%clk 0:03:01.1]} 8. Nf3
{[%clk 0:03:02.6]} 8... Nd7 {[%clk 0:03:01.3]} 9. O-O {[%clk 0:03:01.4]} 9...
Nf6 {[%clk 0:03:01.9]} 10. Rc1 {[%clk 0:03:00.4]} 10... c6 {[%clk 0:03:01.5]}
11. a3 {[%clk 0:02:59.2]} 11... Qe7 {[%clk 0:03:01.4]} 12. b4 {[%clk 0:02:58.5]}
12... a5 {[%clk 0:03:01.3]} 13. Na4 {[%clk 0:02:35.9]} 13... axb4 {[%clk
0:02:59.3]} 14. axb4 {[%clk 0:02:32.4]} 14... Bxb4 {[%clk 0:02:46.3]} 15. Nb6
{[%clk 0:02:30.6]} 15... Rb8 {[%clk 0:02:40.6]} 16. Ne5 {[%clk 0:02:24.5]} 16...
Bd6 {[%clk 0:02:35.6]} 17. f4 {[%clk 0:02:19.5]} 17... Be6 {[%clk 0:02:32.1]}
18. Qb3 {[%clk 0:02:13.8]} 18... Bxc4 {[%clk 0:02:23]} 19. Nbxc4 {[%clk
0:02:11.8]} 19... Bc7 {[%clk 0:02:23]} 20. Nb6 {[%clk 0:02:07.8]} 20... Bxb6
{[%clk 0:02:09.9]} 21. Qxb6 {[%clk 0:02:07]} 21... Nd5 {[%clk 0:02:10.6]} 22.
Qb3 {[%clk 0:02:05.8]} 22... f6 {[%clk 0:02:08.2]} 23. Nc4 {[%clk 0:01:55]}
23... Rfe8 {[%clk 0:01:53]} 24. Rf3 {[%clk 0:01:50.5]} 24... Ra8 {[%clk
0:01:49.9]} 25. Qb1 {[%clk 0:01:23.5]} 25... b5 {[%clk 0:01:26]} 26. Nd2 {[%clk
0:01:17]} 26... Qb4 {[%clk 0:01:20.5]} 27. Nf1 {[%clk 0:01:13]} 27... Qxb1
{[%clk 0:01:19.1]} 28. Rxb1 {[%clk 0:01:12]} 28... b4 {[%clk 0:01:19.5]} 29. Rf2
{[%clk 0:01:05.8]} 29... Ra3 {[%clk 0:01:04.1]} 30. Rc2 {[%clk 0:01:04.8]} 30...
Re6 {[%clk 0:01:00.4]} 31. Kf2 {[%clk 0:00:51.6]} 31... Kf7 {[%clk 0:00:59.7]}
32. h3 {[%clk 0:00:47.6]} 32... h5 {[%clk 0:00:59.4]} 33. Rc4 {[%clk 0:00:37.7]}
33... h4 {[%clk 0:00:54.7]} 34. Rbc1 {[%clk 0:00:35.3]} 34... Ra2+ {[%clk
0:00:45]} 35. Kg1 {[%clk 0:00:34.8]} 35... b3 {[%clk 0:00:41.2]} 36. Rb1 {[%clk
0:00:27]} 36... Nxe3 {[%clk 0:00:40.5]} 37. Nxe3 {[%clk 0:00:18.1]} 37... Rxe3
{[%clk 0:00:41.4]} 38. Rb4 {[%clk 0:00:17.3]} 38... Rg3 {[%clk 0:00:29.7]} 39.
R4xb3 {[%clk 0:00:15.4]} 39... Rgxg2+ {[%clk 0:00:29.7]} 40. Kh1 {[%clk
0:00:15.4]} 40... Rgd2 {[%clk 0:00:23.5]} 41. Rb7+ {[%clk 0:00:13]} 41... Kg8
{[%clk 0:00:20.8]} 42. Rc7 {[%clk 0:00:07.5]} 42... Rh2+ {[%clk 0:00:19.8]} 43.
Kg1 {[%clk 0:00:07.5]} 43... Rag2+ {[%clk 0:00:20.5]} 44. Kf1 {[%clk 0:00:07.7]}
44... Rc2 {[%clk 0:00:21]} 45. Kg1 {[%clk 0:00:06.9]} 45... Rxh3 {[%clk
0:00:21.5]} 46. d5 {[%clk 0:00:05.2]} 46... Rg3+ {[%clk 0:00:19.8]} 47. Kh1
{[%clk 0:00:05.1]} 47... Rh3+ {[%clk 0:00:19.7]} 48. Kg1 {[%clk 0:00:05.2]}
48... Rg3+ {[%clk 0:00:20.1]} 49. Kh1 {[%clk 0:00:05.7]} 49... Rd3 {[%clk
0:00:18.8]} 50. Rxc6 {[%clk 0:00:04.7]} 50... Rxc6 {[%clk 0:00:18.1]} 51. dxc6
{[%clk 0:00:05.6]} 51... Rc3 {[%clk 0:00:18.8]} 52. Rb6 {[%clk 0:00:05.9]} 52...
Kh7 {[%clk 0:00:19]} 53. Kg1 {[%clk 0:00:03.7]} 53... Kh6 {[%clk 0:00:19.4]} 54.
Ra6 {[%clk 0:00:02.1]} 54... Kh5 {[%clk 0:00:19.7]} 55. Kg2 {[%clk 0:00:02.6]}
55... Kg4 {[%clk 0:00:19.2]} 56. Ra7 {[%clk 0:00:02.9]} 56... g5 {[%clk
0:00:19.5]} 57. fxg5 {[%clk 0:00:03.4]} 57... fxg5 {[%clk 0:00:20.4]} 58. c7
{[%clk 0:00:02.9]} 58... Rc2+ {[%clk 0:00:20.5]} 59. Kf1 {[%clk 0:00:03.2]}
59... f4 {[%clk 0:00:21.1]} 60. Ke1 {[%clk 0:00:03.5]} 60... h3 {[%clk
0:00:21.6]} 61. Kd1 {[%clk 0:00:04.4]} 61... Rc6 {[%clk 0:00:21.7]} 62. Kd2
{[%clk 0:00:04.3]} 62... h2 {[%clk 0:00:21.8]} 63. Ra1 {[%clk 0:00:02]} 63...
Rxc7 {[%clk 0:00:21.8]} 0-1

[Event "*** Titled Tuesday Blitz"]
[Site "Chess.com"]
[Date "2020.04.14"]
[Round "4"]
[White "LuckIsMySkill"]
[Black "Hanging_pointer"]
[Result "0-1"]
[WhiteElo "2727"]
[BlackElo "2557"]
[TimeControl "180+1"]
[EndTime "10:40:38 PDT"]
[Termination "Hanging_pointer won by checkmate"]

1. Nf3 {[%clk 0:03:00.9]} 1... c6 {[%clk 0:02:59.1]} 2. c4 {[%clk 0:03:01.7]}
2... d5 {[%clk 0:03:00]} 3. e3 {[%clk 0:03:01.9]} 3... Nf6 {[%clk 0:02:58.2]} 4.
b4 {[%clk 0:03:01.6]} 4... Bg4 {[%clk 0:02:56.7]} 5. b5 {[%clk 0:03:01.7]} 5...
e6 {[%clk 0:02:55]} 6. a4 {[%clk 0:03:00]} 6... Nbd7 {[%clk 0:02:50.9]} 7. h3
{[%clk 0:02:51.5]} 7... Bh5 {[%clk 0:02:44.6]} 8. a5 {[%clk 0:02:48.5]} 8... Ne5
{[%clk 0:02:32.5]} 9. a6 {[%clk 0:02:43.4]} 9... Nxf3+ {[%clk 0:02:32.7]} 10.
gxf3 {[%clk 0:02:42.1]} 10... bxa6 {[%clk 0:02:22.8]} 11. Rxa6 {[%clk
0:02:34.8]} 11... cxb5 {[%clk 0:02:17.3]} 12. cxd5 {[%clk 0:02:30.4]} 12... Qxd5
{[%clk 0:02:04.9]} 13. Bb2 {[%clk 0:02:05.6]} 13... Be7 {[%clk 0:01:59.4]} 14.
Nc3 {[%clk 0:02:00.2]} 14... Qxf3 {[%clk 0:01:56.1]} 15. Bxb5+ {[%clk
0:01:57.8]} 15... Kf8 {[%clk 0:01:55.1]} 16. Qxf3 {[%clk 0:01:56.7]} 16... Bxf3
{[%clk 0:01:53.7]} 17. Rg1 {[%clk 0:01:57]} 17... Bb7 {[%clk 0:01:40.4]} 18. Ra4
{[%clk 0:01:33.7]} 18... g6 {[%clk 0:01:28]} 19. Ke2 {[%clk 0:01:17.2]} 19...
Kg7 {[%clk 0:01:25.1]} 20. Rga1 {[%clk 0:01:17]} 20... Rhb8 {[%clk 0:01:16.9]}
21. Rxa7 {[%clk 0:01:07.7]} 21... Rxa7 {[%clk 0:01:17.8]} 22. Rxa7 {[%clk
0:01:07.9]} 22... Kg8 {[%clk 0:01:15]} 23. Ba3 {[%clk 0:00:59]} 23... Bxa3
{[%clk 0:01:13]} 24. Rxa3 {[%clk 0:00:59.9]} 24... Nd5 {[%clk 0:01:07.6]} 25.
Na4 {[%clk 0:00:30.2]} 25... Ra8 {[%clk 0:01:01.8]} 26. Rb3 {[%clk 0:00:29.5]}
26... Ne7 {[%clk 0:00:58.3]} 27. Nc5 {[%clk 0:00:26.3]} 27... Bd5 {[%clk
0:00:56.3]} 28. Rc3 {[%clk 0:00:25]} 28... Ra5 {[%clk 0:00:55.3]} 29. Bd7 {[%clk
0:00:20.4]} 29... Bg2 {[%clk 0:00:52.5]} 30. h4 {[%clk 0:00:20.7]} 30... Nf5
{[%clk 0:00:51.6]} 31. e4 {[%clk 0:00:14]} 31... Nxh4 {[%clk 0:00:48.1]} 32. d4
{[%clk 0:00:13.9]} 32... g5 {[%clk 0:00:45.2]} 33. Be8 {[%clk 0:00:10.8]} 33...
Kf8 {[%clk 0:00:42.8]} 34. Bc6 {[%clk 0:00:10.2]} 34... h6 {[%clk 0:00:42.6]}
35. d5 {[%clk 0:00:08.4]} 35... exd5 {[%clk 0:00:35.9]} 36. Bxd5 {[%clk
0:00:09.3]} 36... Ng6 {[%clk 0:00:33.4]} 37. Nb7 {[%clk 0:00:05.4]} 37... Ra7
{[%clk 0:00:30.4]} 38. Rc8+ {[%clk 0:00:04.1]} 38... Kg7 {[%clk 0:00:30.1]} 39.
Nd6 {[%clk 0:00:03.6]} 39... Nf4+ {[%clk 0:00:28.5]} 40. Kd2 {[%clk 0:00:01.9]}
40... Nxd5 {[%clk 0:00:28.5]} 41. exd5 {[%clk 0:00:02.4]} 41... Bxd5 {[%clk
0:00:29.1]} 42. Rd8 {[%clk 0:00:02.9]} 42... Be6 {[%clk 0:00:29.1]} 43. Ke3
{[%clk 0:00:02.9]} 43... Rd7 {[%clk 0:00:28.6]} 44. Ne8+ {[%clk 0:00:02.5]}
44... Kg6 {[%clk 0:00:26.3]} 45. Rb8 {[%clk 0:00:02.8]} 45... h5 {[%clk
0:00:25.2]} 46. Kf3 {[%clk 0:00:02.5]} 46... h4 {[%clk 0:00:25.1]} 47. Kg2
{[%clk 0:00:02.7]} 47... g4 {[%clk 0:00:25.2]} 48. Kh2 {[%clk 0:00:03]} 48...
Rd2 {[%clk 0:00:24.2]} 49. Kg1 {[%clk 0:00:03.3]} 49... h3 {[%clk 0:00:18.2]}
50. Nc7 {[%clk 0:00:03]} 50... Bf5 {[%clk 0:00:16.9]} 51. Rb6+ {[%clk
0:00:02.3]} 51... Kg5 {[%clk 0:00:16.6]} 52. Rb5 {[%clk 0:00:02.4]} 52... g3
{[%clk 0:00:11.8]} 53. fxg3 {[%clk 0:00:02.3]} 53... Kg4 {[%clk 0:00:12.1]} 54.
Nd5 {[%clk 0:00:01.9]} 54... h2+ {[%clk 0:00:10.6]} 55. Kh1 {[%clk 0:00:01.5]}
55... Be4# {[%clk 0:00:10.9]} 0-1

[Event "*** Titled Tuesday Blitz"]
[Site "Chess.com"]
[Date "2020.04.14"]
[Round "4"]
[White "IwkooO"]
[Black "MarcoRiehle"]
[Result "0-1"]
[WhiteElo "2532"]
[BlackElo "2721"]
[TimeControl "180+1"]
[EndTime "10:40:38 PDT"]
[Termination "MarcoRiehle won by resignation"]

1. e4 {[%clk 0:03:00.9]} 1... e5 {[%clk 0:02:57.9]} 2. Nf3 {[%clk 0:03:00.7]}
2... Nf6 {[%clk 0:02:58.1]} 3. d4 {[%clk 0:02:58.6]} 3... Nxe4 {[%clk
0:02:56.4]} 4. Bd3 {[%clk 0:02:58.7]} 4... Nc6 {[%clk 0:02:56]} 5. dxe5 {[%clk
0:01:58]} 5... Nc5 {[%clk 0:02:54.4]} 6. O-O {[%clk 0:01:52.7]} 6... Nxd3 {[%clk
0:02:43.8]} 7. Qxd3 {[%clk 0:01:51.6]} 7... Be7 {[%clk 0:02:44.1]} 8. Nc3 {[%clk
0:01:49.3]} 8... O-O {[%clk 0:02:42.7]} 9. Nd5 {[%clk 0:01:49.2]} 9... Re8
{[%clk 0:02:36.3]} 10. Bf4 {[%clk 0:01:48.4]} 10... h6 {[%clk 0:02:22.9]} 11. e6
{[%clk 0:01:30.6]} 11... dxe6 {[%clk 0:02:08.6]} 12. Nxc7 {[%clk 0:01:29.2]}
12... Qxd3 {[%clk 0:02:08.3]} 13. cxd3 {[%clk 0:01:30.1]} 13... Bd7 {[%clk
0:02:08.2]} 14. Nxa8 {[%clk 0:01:30.3]} 14... Rxa8 {[%clk 0:02:08.6]} 15. Ne5
{[%clk 0:01:29.2]} 15... Nxe5 {[%clk 0:02:07.3]} 16. Bxe5 {[%clk 0:01:30.1]}
16... Bc6 {[%clk 0:02:07.8]} 17. Rac1 {[%clk 0:01:28.6]} 17... Rd8 {[%clk
0:02:07]} 18. Rfd1 {[%clk 0:01:28.6]} 18... Rd5 {[%clk 0:02:06.5]} 19. Bc3
{[%clk 0:01:28.3]} 19... Rg5 {[%clk 0:02:01]} 20. g3 {[%clk 0:01:26.4]} 20...
Rg6 {[%clk 0:01:52.7]} 21. Bd4 {[%clk 0:01:21.7]} 21... a6 {[%clk 0:01:51.4]}
22. a3 {[%clk 0:01:16]} 22... h5 {[%clk 0:01:45.4]} 23. Rc3 {[%clk 0:01:03.5]}
23... h4 {[%clk 0:01:43.7]} 24. Rdc1 {[%clk 0:01:03.4]} 24... hxg3 {[%clk
0:01:43.5]} 25. fxg3 {[%clk 0:00:57.8]} 25... Rg4 {[%clk 0:01:38.1]} 26. Be3
{[%clk 0:00:56]} 26... Bf6 {[%clk 0:01:37.6]} 27. R3c2 {[%clk 0:00:47.4]} 27...
Ra4 {[%clk 0:01:25.5]} 28. Kf2 {[%clk 0:00:46.4]} 28... Ra5 {[%clk 0:01:24]} 29.
Rd2 {[%clk 0:00:42.6]} 29... Rf5+ {[%clk 0:01:21.4]} 30. Kg1 {[%clk 0:00:43.2]}
30... Rf3 {[%clk 0:01:20.6]} 31. Bf2 {[%clk 0:00:43.3]} 31... Bg5 {[%clk
0:01:19.9]} 32. Rcd1 {[%clk 0:00:42]} 32... Bxd2 {[%clk 0:01:19.3]} 33. Rxd2
{[%clk 0:00:42.9]} 33... Bb5 {[%clk 0:01:19.7]} 34. Kg2 {[%clk 0:00:40.4]} 34...
Rf5 {[%clk 0:01:05.2]} 35. Bd4 {[%clk 0:00:39.3]} 35... Rd5 {[%clk 0:01:04.4]}
36. Bc3 {[%clk 0:00:39.4]} 36... Bxd3 {[%clk 0:01:03.6]} 37. Kf2 {[%clk
0:00:39.3]} 37... Rf5+ {[%clk 0:00:59.3]} 38. Ke3 {[%clk 0:00:39.7]} 38... Bb5
{[%clk 0:00:59.5]} 39. Rd8+ {[%clk 0:00:38.9]} 39... Kh7 {[%clk 0:00:59.3]} 40.
Rd4 {[%clk 0:00:37.7]} 40... Bc6 {[%clk 0:00:55.2]} 41. Rg4 {[%clk 0:00:37.9]}
41... e5 {[%clk 0:00:38.1]} 42. Rc4 {[%clk 0:00:34.6]} 42... f6 {[%clk
0:00:36.4]} 43. Rh4+ {[%clk 0:00:34]} 43... Kg6 {[%clk 0:00:36]} 44. Rh8 {[%clk
0:00:33.6]} 44... Rf1 {[%clk 0:00:32.5]} 45. Rd8 {[%clk 0:00:20.8]} 45... f5
{[%clk 0:00:27.8]} 46. Rd6+ {[%clk 0:00:18.4]} 46... Kf7 {[%clk 0:00:27.2]} 47.
Bxe5 {[%clk 0:00:13.4]} 47... Rf3+ {[%clk 0:00:23.3]} 48. Kd4 {[%clk 0:00:13.3]}
48... Rb3 {[%clk 0:00:21.4]} 49. Kc5 {[%clk 0:00:13.5]} 49... Rb5+ {[%clk
0:00:20.3]} 50. Kd4 {[%clk 0:00:14]} 50... Rxb2 {[%clk 0:00:19.8]} 51. Rxc6
{[%clk 0:00:14.6]} 51... bxc6 {[%clk 0:00:18.8]} 52. Kc5 {[%clk 0:00:15.1]}
52... Rb5+ {[%clk 0:00:18.2]} 53. Kxc6 {[%clk 0:00:15.4]} 0-1

[Event "*** Titled Tuesday Blitz"]
[Site "Chess.com"]
[Date "2020.04.14"]
[Round "4"]
[White "arctic_t00"]
[Black "ahachess"]
[Result "0-1"]
[WhiteElo "2484"]
[BlackElo "2330"]
[TimeControl "180+1"]
[EndTime "10:40:39 PDT"]
[Termination "ahachess won by resignation"]

1. d4 {[%clk 0:03:00.9]} 1... Nf6 {[%clk 0:02:33.8]} 2. Nf3 {[%clk 0:03:00.7]}
2... g6 {[%clk 0:02:33.7]} 3. Nbd2 {[%clk 0:02:59.6]} 3... Bg7 {[%clk
0:02:28.5]} 4. e4 {[%clk 0:02:59.3]} 4... d6 {[%clk 0:02:29.2]} 5. Bb5+ {[%clk
0:02:59.6]} 5... c6 {[%clk 0:02:21.9]} 6. Bd3 {[%clk 0:02:59.6]} 6... O-O {[%clk
0:02:19.7]} 7. O-O {[%clk 0:02:59.9]} 7... Qc7 {[%clk 0:02:19.2]} 8. c3 {[%clk
0:02:58.4]} 8... c5 {[%clk 0:02:14.5]} 9. h3 {[%clk 0:02:53.2]} 9... b6 {[%clk
0:02:13.1]} 10. Re1 {[%clk 0:02:52.3]} 10... Nc6 {[%clk 0:02:01.6]} 11. d5
{[%clk 0:02:41.3]} 11... Na5 {[%clk 0:01:52.5]} 12. Rb1 {[%clk 0:01:57]} 12...
Nh5 {[%clk 0:01:46]} 13. b4 {[%clk 0:01:42.3]} 13... Nb7 {[%clk 0:01:41.3]} 14.
Bb2 {[%clk 0:01:39.2]} 14... Nf4 {[%clk 0:01:38.9]} 15. Bf1 {[%clk 0:01:38.4]}
15... e5 {[%clk 0:01:38]} 16. dxe6 {[%clk 0:01:16.6]} 16... fxe6 {[%clk
0:01:30]} 17. g3 {[%clk 0:01:16.3]} 17... Nh5 {[%clk 0:01:28.5]} 18. Bg2 {[%clk
0:01:11.7]} 18... Bd7 {[%clk 0:01:20.6]} 19. Qb3 {[%clk 0:00:57.5]} 19... Rae8
{[%clk 0:01:18.5]} 20. Rbd1 {[%clk 0:00:49.8]} 20... Bc6 {[%clk 0:01:15.5]} 21.
b5 {[%clk 0:00:45.3]} 21... Bd7 {[%clk 0:01:14.3]} 22. c4 {[%clk 0:00:44.2]}
22... Bxb2 {[%clk 0:01:06.1]} 23. Qxb2 {[%clk 0:00:44.3]} 23... e5 {[%clk
0:01:04.8]} 24. Qc3 {[%clk 0:00:33.6]} 24... Ng7 {[%clk 0:01:04.5]} 25. Qe3
{[%clk 0:00:30.8]} 25... Ne6 {[%clk 0:01:04]} 26. Qh6 {[%clk 0:00:29.7]} 26...
Qd8 {[%clk 0:01:02.6]} 27. Nf1 {[%clk 0:00:22.3]} 27... Qf6 {[%clk 0:01:01.8]}
28. Rd2 {[%clk 0:00:14.8]} 28... Bc8 {[%clk 0:00:56.1]} 29. Ne3 {[%clk
0:00:13.8]} 29... Nd4 {[%clk 0:00:54.3]} 30. Ng5 {[%clk 0:00:13.7]} 30... Qg7
{[%clk 0:00:48.9]} 31. Qxg7+ {[%clk 0:00:11.5]} 31... Kxg7 {[%clk 0:00:48.8]}
32. f4 {[%clk 0:00:05.2]} 32... exf4 {[%clk 0:00:46]} 33. gxf4 {[%clk
0:00:05.2]} 33... Rxf4 {[%clk 0:00:37.6]} 34. Nd5 {[%clk 0:00:05.5]} 34... Rff8
{[%clk 0:00:32.8]} 35. Rf2 {[%clk 0:00:05.4]} 35... Rxf2 {[%clk 0:00:31.3]} 36.
Kxf2 {[%clk 0:00:05.4]} 36... Rf8+ {[%clk 0:00:31.7]} 37. Kg3 {[%clk 0:00:04.6]}
37... h6 {[%clk 0:00:31.6]} 38. Nf3 {[%clk 0:00:04.6]} 38... Nxf3 {[%clk
0:00:31.6]} 39. Bxf3 {[%clk 0:00:05.5]} 39... Bxh3 {[%clk 0:00:31.5]} 40. e5
{[%clk 0:00:05.5]} 40... dxe5 {[%clk 0:00:26]} 41. Rxe5 {[%clk 0:00:06.4]} 41...
Bc8 {[%clk 0:00:24.1]} 42. Re7+ {[%clk 0:00:05.9]} 42... Rf7 {[%clk 0:00:24.4]}
43. Re8 {[%clk 0:00:06.3]} 43... Bf5 {[%clk 0:00:23.1]} 44. Ra8 {[%clk
0:00:05.6]} 44... Nd6 {[%clk 0:00:23.1]} 45. Be2 {[%clk 0:00:03.7]} 45... Be4
{[%clk 0:00:20.7]} 46. Nf4 {[%clk 0:00:03.1]} 46... Nf5+ {[%clk 0:00:20.3]} 47.
Kf2 {[%clk 0:00:02.6]} 47... Nd4 {[%clk 0:00:19.9]} 48. Rb8 {[%clk 0:00:01.6]}
48... Rxf4+ {[%clk 0:00:18.2]} 49. Ke3 {[%clk 0:00:02.5]} 49... Rf7 {[%clk
0:00:18]} 50. Ra8 {[%clk 0:00:02.4]} 50... Bxa8 {[%clk 0:00:17.7]} 51. Bf3
{[%clk 0:00:02.3]} 0-1